[Event "*** Titled Tuesday Blitz"]
[Site "Chess.com"]
[Date "2020.05.26"]
[Round "3"]
[White "Chuchofrio1"]
[Black "tamarozi99"]
[Result "1-0"]
[WhiteElo "2284"]
[BlackElo "2006"]
[TimeControl "180+1"]
[EndTime "10:25:24 PDT"]
[Termination "Chuchofrio1 won by checkmate"]

1. e4 {[%clk 0:03:00.9]} 1... c5 {[%clk 0:02:57.7]} 2. Nc3 {[%clk 0:03:00.7]}
2... g5 {[%clk 0:02:56]} 3. d3 {[%clk 0:02:57.5]} 3... h6 {[%clk 0:02:55.2]} 4.
f4 {[%clk 0:02:57.2]} 4... gxf4 {[%clk 0:02:53.1]} 5. Bxf4 {[%clk 0:02:58.1]}
5... Bg7 {[%clk 0:02:52.6]} 6. Nf3 {[%clk 0:02:57.7]} 6... d6 {[%clk 0:02:50.9]}
7. Be2 {[%clk 0:02:57.2]} 7... Nc6 {[%clk 0:02:49.9]} 8. O-O {[%clk 0:02:48.7]}
8... e5 {[%clk 0:02:39.4]} 9. Be3 {[%clk 0:02:42.8]} 9... Be6 {[%clk 0:02:37.5]}
10. Qd2 {[%clk 0:02:41.8]} 10... Nd4 {[%clk 0:02:29.7]} 11. Bf2 {[%clk
0:02:27.7]} 11... Nxe2+ {[%clk 0:02:24.2]} 12. Nxe2 {[%clk 0:02:28.6]} 12... Ne7
{[%clk 0:02:24.1]} 13. c3 {[%clk 0:02:26.5]} 13... Bg4 {[%clk 0:02:09.1]} 14.
Ne1 {[%clk 0:02:21.9]} 14... Qd7 {[%clk 0:02:06.4]} 15. Nc2 {[%clk 0:02:15.4]}
15... h5 {[%clk 0:01:51.2]} 16. d4 {[%clk 0:02:12.6]} 16... cxd4 {[%clk
0:01:19.4]} 17. cxd4 {[%clk 0:02:09]} 17... Bh6 {[%clk 0:01:06.1]} 18. Qd3
{[%clk 0:02:05.2]} 18... Rg8 {[%clk 0:00:59]} 19. Nc3 {[%clk 0:02:00.3]} 19...
Bh3 {[%clk 0:00:49.2]} 20. g3 {[%clk 0:01:57.8]} 20... Bxf1 {[%clk 0:00:48.1]}
21. Rxf1 {[%clk 0:01:56.2]} 21... h4 {[%clk 0:00:48]} 22. dxe5 {[%clk
0:01:56.3]} 22... hxg3 {[%clk 0:00:45.9]} 23. Bxg3 {[%clk 0:01:57.2]} 23... dxe5
{[%clk 0:00:44.8]} 24. Qxd7+ {[%clk 0:01:57.5]} 24... Kxd7 {[%clk 0:00:44.5]}
25. Rd1+ {[%clk 0:01:49]} 25... Ke6 {[%clk 0:00:42.5]} 26. Nb5 {[%clk
0:01:39.2]} 26... Rac8 {[%clk 0:00:40.3]} 27. Rd6# {[%clk 0:01:37.9]} 1-0

[Event "*** Titled Tuesday Blitz"]
[Site "Chess.com"]
[Date "2020.05.26"]
[Round "3"]
[White "chesslh19"]
[Black "Ural_bogatyr"]
[Result "0-1"]
[WhiteElo "2159"]
[BlackElo "2341"]
[TimeControl "180+1"]
[EndTime "10:25:28 PDT"]
[Termination "Ural_bogatyr won by resignation"]

1. e4 {[%clk 0:03:00.9]} 1... e5 {[%clk 0:02:58.9]} 2. Nf3 {[%clk 0:03:01.1]}
2... Nc6 {[%clk 0:02:58.6]} 3. Bb5 {[%clk 0:03:01.4]} 3... Bc5 {[%clk
0:02:58.1]} 4. O-O {[%clk 0:03:00.5]} 4... Nf6 {[%clk 0:02:58.3]} 5. c3 {[%clk
0:02:56.5]} 5... O-O {[%clk 0:02:57.7]} 6. d4 {[%clk 0:02:56.6]} 6... Bb6 {[%clk
0:02:57.2]} 7. dxe5 {[%clk 0:02:42.4]} 7... Nxe4 {[%clk 0:02:55.5]} 8. Qd5
{[%clk 0:02:42.6]} 8... Nc5 {[%clk 0:02:54.6]} 9. Bg5 {[%clk 0:02:21.8]} 9...
Ne7 {[%clk 0:02:51.6]} 10. Qd1 {[%clk 0:02:08.8]} 10... Ne6 {[%clk 0:02:43.2]}
11. Bh4 {[%clk 0:02:02.3]} 11... c6 {[%clk 0:02:31.3]} 12. Bd3 {[%clk
0:01:53.7]} 12... Bc7 {[%clk 0:02:30.7]} 13. Nbd2 {[%clk 0:01:52.3]} 13... d5
{[%clk 0:02:29.6]} 14. exd6 {[%clk 0:01:51.2]} 14... Bxd6 {[%clk 0:02:28.6]} 15.
Ne4 {[%clk 0:01:47.6]} 15... Bc7 {[%clk 0:02:28.2]} 16. Bg3 {[%clk 0:01:23]}
16... Nd5 {[%clk 0:02:24.3]} 17. Bxc7 {[%clk 0:01:11.2]} 17... Qxc7 {[%clk
0:02:25.2]} 18. Neg5 {[%clk 0:01:00.4]} 18... h6 {[%clk 0:02:22]} 19. Nxe6
{[%clk 0:00:53.3]} 19... Bxe6 {[%clk 0:02:22.9]} 20. Nd4 {[%clk 0:00:53.3]}
20... Bd7 {[%clk 0:02:16.5]} 21. Re1 {[%clk 0:00:48.8]} 21... Rad8 {[%clk
0:02:14.6]} 22. Qf3 {[%clk 0:00:46.6]} 22... Bc8 {[%clk 0:02:13.6]} 23. Nf5
{[%clk 0:00:41.2]} 23... Qf4 {[%clk 0:02:07.3]} 24. Qxf4 {[%clk 0:00:37.1]}
24... Nxf4 {[%clk 0:02:08.2]} 25. Bc4 {[%clk 0:00:24.2]} 25... Bxf5 {[%clk
0:02:06.2]} 26. Re7 {[%clk 0:00:21.6]} 26... Rd7 {[%clk 0:02:01.3]} 27. Rxd7
{[%clk 0:00:21.4]} 27... Bxd7 {[%clk 0:02:00.5]} 28. Rd1 {[%clk 0:00:22]} 28...
Be6 {[%clk 0:02:00.4]} 29. Bxe6 {[%clk 0:00:20.5]} 29... Nxe6 {[%clk 0:02:01.3]}
0-1

[Event "*** Titled Tuesday Blitz"]
[Site "Chess.com"]
[Date "2020.05.26"]
[Round "3"]
[White "m_ezat"]
[Black "Rinas_Oleg"]
[Result "1-0"]
[WhiteElo "2492"]
[BlackElo "2230"]
[TimeControl "180+1"]
[EndTime "10:25:29 PDT"]
[Termination "m_ezat won by resignation"]

1. d4 {[%clk 0:03:00.9]} 1... Nf6 {[%clk 0:02:58.5]} 2. c4 {[%clk 0:03:00.7]}
2... g6 {[%clk 0:02:57.8]} 3. Nc3 {[%clk 0:03:00.8]} 3... d5 {[%clk 0:02:57.7]}
4. Bg5 {[%clk 0:02:59.5]} 4... Ne4 {[%clk 0:02:56.4]} 5. cxd5 {[%clk 0:02:45.1]}
5... Nxg5 {[%clk 0:02:50.7]} 6. h4 {[%clk 0:02:44.4]} 6... Ne6 {[%clk
0:02:43.9]} 7. dxe6 {[%clk 0:02:35]} 7... Bxe6 {[%clk 0:02:43.4]} 8. e4 {[%clk
0:02:33]} 8... c6 {[%clk 0:02:42.8]} 9. h5 {[%clk 0:02:25.3]} 9... Bg7 {[%clk
0:02:39.3]} 10. Nf3 {[%clk 0:02:23.7]} 10... Bg4 {[%clk 0:02:36.5]} 11. h6
{[%clk 0:02:20.7]} 11... Bf8 {[%clk 0:02:09.1]} 12. Bc4 {[%clk 0:02:18.4]} 12...
e6 {[%clk 0:02:02.7]} 13. d5 {[%clk 0:01:49.6]} 13... Qf6 {[%clk 0:01:31.1]} 14.
Qb3 {[%clk 0:01:30]} 14... b5 {[%clk 0:01:25.6]} 15. Nxb5 {[%clk 0:01:29.4]}
15... cxb5 {[%clk 0:01:23.5]} 16. Bxb5+ {[%clk 0:01:26.3]} 16... Nd7 {[%clk
0:01:23]} 17. Bxd7+ {[%clk 0:01:22.8]} 17... Kxd7 {[%clk 0:01:22.4]} 18. Qb7+
{[%clk 0:01:22.2]} 18... Kd6 {[%clk 0:01:18.1]} 19. Qc6+ {[%clk 0:01:10.5]}
19... Ke7 {[%clk 0:01:13.9]} 20. d6+ {[%clk 0:01:09.5]} 20... Kd8 {[%clk
0:01:13.1]} 21. Qc7+ {[%clk 0:01:07.8]} 1-0

[Event "*** Titled Tuesday Blitz"]
[Site "Chess.com"]
[Date "2020.05.26"]
[Round "3"]
[White "valeriocarnicelli"]
[Black "Aleksandar-Topalov"]
[Result "1-0"]
[WhiteElo "2567"]
[BlackElo "2361"]
[TimeControl "180+1"]
[EndTime "10:25:30 PDT"]
[Termination "valeriocarnicelli won by resignation"]

1. e4 {[%clk 0:02:40.8]} 1... e6 {[%clk 0:00:38.6]} 2. d4 {[%clk 0:02:37.1]}
2... d5 {[%clk 0:00:38.4]} 3. Nc3 {[%clk 0:02:37.6]} 3... Bb4 {[%clk 0:00:38]}
4. e5 {[%clk 0:02:37.6]} 4... Qd7 {[%clk 0:00:38.2]} 5. a3 {[%clk 0:02:37.8]}
5... Bxc3+ {[%clk 0:00:37.9]} 6. bxc3 {[%clk 0:02:38.7]} 6... b6 {[%clk
0:00:38.6]} 7. Qg4 {[%clk 0:02:38.9]} 7... f5 {[%clk 0:00:38]} 8. Qg3 {[%clk
0:02:33.1]} 8... Qf7 {[%clk 0:00:37.9]} 9. h4 {[%clk 0:02:30.4]} 9... Ba6 {[%clk
0:00:37.5]} 10. Bxa6 {[%clk 0:02:30]} 10... Nxa6 {[%clk 0:00:38.4]} 11. Ne2
{[%clk 0:02:30.5]} 11... Nb8 {[%clk 0:00:38.5]} 12. Nf4 {[%clk 0:02:30.7]} 12...
Nc6 {[%clk 0:00:39.1]} 13. Nxe6 {[%clk 0:02:30.3]} 13... Qxe6 {[%clk 0:00:38.6]}
14. Qxg7 {[%clk 0:02:30.4]} 14... O-O-O {[%clk 0:00:39.3]} 15. Qxh8 {[%clk
0:02:28.7]} 15... Qg6 {[%clk 0:00:39.5]} 16. O-O {[%clk 0:02:18.6]} 16... Rf8
{[%clk 0:00:38]} 17. Bf4 {[%clk 0:01:57.4]} 17... Qg4 {[%clk 0:00:35.2]} 18. g3
{[%clk 0:01:53.1]} 18... Nd8 {[%clk 0:00:31.7]} 19. e6 {[%clk 0:01:51.7]} 19...
Nxe6 {[%clk 0:00:30.4]} 20. Qe5 {[%clk 0:01:51.2]} 20... Nxf4 {[%clk 0:00:29.9]}
21. Qxf4 {[%clk 0:01:51.5]} 21... Qg6 {[%clk 0:00:30.1]} 22. Rfe1 {[%clk
0:01:50.4]} 22... Nf6 {[%clk 0:00:29.8]} 23. Re7 {[%clk 0:01:49.8]} 23... Ne8
{[%clk 0:00:24.2]} 24. Rae1 {[%clk 0:01:48.7]} 24... Nd6 {[%clk 0:00:24.4]} 25.
R1e6 {[%clk 0:01:47.1]} 1-0

[Event "*** Titled Tuesday Blitz"]
[Site "Chess.com"]
[Date "2020.05.26"]
[Round "3"]
[White "Shivagami"]
[Black "Usurpov"]
[Result "1-0"]
[WhiteElo "2214"]
[BlackElo "2413"]
[TimeControl "180+1"]
[EndTime "10:25:31 PDT"]
[Termination "Shivagami won by resignation"]

1. e4 {[%clk 0:03:00.9]} 1... c5 {[%clk 0:02:59.5]} 2. Nc3 {[%clk 0:02:57.5]}
2... e6 {[%clk 0:02:59.3]} 3. g3 {[%clk 0:02:57.6]} 3... d5 {[%clk 0:02:59.5]}
4. exd5 {[%clk 0:02:57]} 4... exd5 {[%clk 0:03:00.4]} 5. Bg2 {[%clk 0:02:57.5]}
5... d4 {[%clk 0:02:59]} 6. Nce2 {[%clk 0:02:55]} 6... Bd6 {[%clk 0:02:53.5]} 7.
d3 {[%clk 0:02:53.8]} 7... Ne7 {[%clk 0:02:51.7]} 8. Nf3 {[%clk 0:02:53.9]} 8...
O-O {[%clk 0:02:50.9]} 9. O-O {[%clk 0:02:53.6]} 9... Nbc6 {[%clk 0:02:51.3]}
10. Bf4 {[%clk 0:02:46.9]} 10... Re8 {[%clk 0:02:48.7]} 11. Bxd6 {[%clk
0:02:44]} 11... Qxd6 {[%clk 0:02:49.6]} 12. Nf4 {[%clk 0:02:44.5]} 12... Ng6
{[%clk 0:02:45.1]} 13. Nxg6 {[%clk 0:02:42.7]} 13... hxg6 {[%clk 0:02:46]} 14.
Re1 {[%clk 0:02:41.2]} 14... Be6 {[%clk 0:02:41.3]} 15. Qd2 {[%clk 0:02:36.7]}
15... b5 {[%clk 0:02:40.1]} 16. Qg5 {[%clk 0:02:36.5]} 16... Bd5 {[%clk
0:02:32.8]} 17. Qh4 {[%clk 0:02:24.1]} 17... f6 {[%clk 0:02:24.6]} 18. Qg4
{[%clk 0:02:12.5]} 18... Kf7 {[%clk 0:02:22.9]} 19. Nh4 {[%clk 0:02:04.8]} 19...
Ne7 {[%clk 0:01:20]} 20. Rxe7+ {[%clk 0:01:57.8]} 20... Rxe7 {[%clk 0:01:14.5]}
21. Qxg6+ {[%clk 0:01:56.9]} 21... Kf8 {[%clk 0:01:14.7]} 22. Nf5 {[%clk
0:01:55.7]} 22... Qd7 {[%clk 0:00:59.6]} 23. Bxd5 {[%clk 0:01:27.9]} 23... Qxd5
{[%clk 0:00:58.4]} 24. Nxe7 {[%clk 0:01:28.1]} 24... Kxe7 {[%clk 0:00:50.3]} 25.
Qxg7+ {[%clk 0:01:27.8]} 1-0

[Event "*** Titled Tuesday Blitz"]
[Site "Chess.com"]
[Date "2020.05.26"]
[Round "3"]
[White "CyberneticLion"]
[Black "KNVB"]
[Result "0-1"]
[WhiteElo "2441"]
[BlackElo "2777"]
[TimeControl "180+1"]
[EndTime "10:25:32 PDT"]
[Termination "KNVB won by resignation"]

1. e4 {[%clk 0:03:00.9]} 1... b6 {[%clk 0:02:57]} 2. d4 {[%clk 0:03:00.1]} 2...
Bb7 {[%clk 0:02:57.4]} 3. Nc3 {[%clk 0:02:59.3]} 3... e6 {[%clk 0:02:57.8]} 4.
Nf3 {[%clk 0:02:55.9]} 4... Bb4 {[%clk 0:02:57.7]} 5. Bd3 {[%clk 0:02:55.5]}
5... Nf6 {[%clk 0:02:57.6]} 6. Qe2 {[%clk 0:02:55.2]} 6... d5 {[%clk 0:02:58]}
7. e5 {[%clk 0:02:53.8]} 7... Ne4 {[%clk 0:02:58.4]} 8. Bd2 {[%clk 0:02:48.1]}
8... Bxc3 {[%clk 0:02:58.6]} 9. bxc3 {[%clk 0:02:39]} 9... Nc6 {[%clk
0:02:58.6]} 10. O-O {[%clk 0:02:38.2]} 10... h6 {[%clk 0:02:58]} 11. Bxe4 {[%clk
0:02:33.7]} 11... dxe4 {[%clk 0:02:58.9]} 12. Qxe4 {[%clk 0:02:34.2]} 12... Na5
{[%clk 0:02:59]} 13. Qd3 {[%clk 0:02:28.8]} 13... Qd5 {[%clk 0:02:58.7]} 14.
Rab1 {[%clk 0:01:55]} 14... O-O-O {[%clk 0:02:37.1]} 15. a4 {[%clk 0:01:52.3]}
15... Bc6 {[%clk 0:02:35.1]} 16. Be3 {[%clk 0:01:44.6]} 16... f5 {[%clk
0:02:29.2]} 17. Rb4 {[%clk 0:01:35.7]} 17... g5 {[%clk 0:02:18.2]} 18. c4 {[%clk
0:01:33.9]} 18... Qe4 {[%clk 0:02:18.4]} 19. Qxe4 {[%clk 0:01:33.1]} 19... Bxe4
{[%clk 0:02:19.3]} 20. Nd2 {[%clk 0:01:15.6]} 20... Bb7 {[%clk 0:01:50.7]} 21.
f4 {[%clk 0:00:52.8]} 21... Nc6 {[%clk 0:01:45.5]} 22. Rb2 {[%clk 0:00:49.2]}
22... Nxd4 {[%clk 0:01:43.1]} 23. fxg5 {[%clk 0:00:47.6]} 23... hxg5 {[%clk
0:01:44]} 24. Bxg5 {[%clk 0:00:47]} 24... Rdg8 {[%clk 0:01:44.6]} 25. h4 {[%clk
0:00:47]} 25... Rxh4 {[%clk 0:01:44.7]} 26. Bxh4 {[%clk 0:00:32.3]} 26... Rxg2+
{[%clk 0:01:45.6]} 27. Kh1 {[%clk 0:00:32.7]} 27... Rxd2+ {[%clk 0:01:40.4]} 28.
Kg1 {[%clk 0:00:32]} 28... Rg2+ {[%clk 0:01:40.3]} 29. Kh1 {[%clk 0:00:32.3]}
29... Rxc2+ {[%clk 0:01:40.9]} 0-1

[Event "*** Titled Tuesday Blitz"]
[Site "Chess.com"]
[Date "2020.05.26"]
[Round "3"]
[White "Nastya_Rakhmangulova"]
[Black "seastar"]
[Result "1-0"]
[WhiteElo "2295"]
[BlackElo "2031"]
[TimeControl "180+1"]
[EndTime "10:25:39 PDT"]
[Termination "Nastya_Rakhmangulova won by resignation"]

1. e4 {[%clk 0:02:21.1]} 1... d5 {[%clk 0:01:34.3]} 2. exd5 {[%clk 0:02:19.5]}
2... Qxd5 {[%clk 0:01:33.8]} 3. Nc3 {[%clk 0:02:19.9]} 3... Qd6 {[%clk 0:01:34]}
4. d4 {[%clk 0:02:18.9]} 4... Nf6 {[%clk 0:01:34.1]} 5. Nf3 {[%clk 0:02:19.5]}
5... a6 {[%clk 0:01:34.4]} 6. a4 {[%clk 0:02:10.4]} 6... Bg4 {[%clk 0:01:32.6]}
7. h3 {[%clk 0:02:10.3]} 7... Bh5 {[%clk 0:01:31.1]} 8. g4 {[%clk 0:02:10.1]}
8... Bg6 {[%clk 0:01:31.2]} 9. Ne5 {[%clk 0:02:10.3]} 9... Nc6 {[%clk
0:01:24.6]} 10. Nxc6 {[%clk 0:01:58]} 10... Qxc6 {[%clk 0:01:20.7]} 11. d5
{[%clk 0:01:57.5]} 11... Qd6 {[%clk 0:01:13.9]} 12. Bg2 {[%clk 0:01:56.6]} 12...
O-O-O {[%clk 0:01:14]} 13. O-O {[%clk 0:01:47.8]} 13... Nd7 {[%clk 0:00:34.2]}
14. Qf3 {[%clk 0:01:38.5]} 14... Nc5 {[%clk 0:00:19.3]} 15. Bf4 {[%clk 0:01:36]}
15... Qd7 {[%clk 0:00:16.3]} 16. b4 {[%clk 0:01:35.7]} 16... e5 {[%clk
0:00:13.1]} 17. dxe6 {[%clk 0:01:29.7]} 1-0

[Event "*** Titled Tuesday Blitz"]
[Site "Chess.com"]
[Date "2020.05.26"]
[Round "3"]
[White "TheCavemanChesss"]
[Black "dennisodessa"]
[Result "1-0"]
[WhiteElo "2473"]
[BlackElo "2227"]
[TimeControl "180+1"]
[EndTime "10:25:50 PDT"]
[Termination "TheCavemanChesss won by resignation"]

1. e4 {[%clk 0:03:00.9]} 1... e6 {[%clk 0:03:00.9]} 2. d4 {[%clk 0:02:56.9]}
2... d5 {[%clk 0:03:01.4]} 3. Nc3 {[%clk 0:02:57.1]} 3... Nc6 {[%clk 0:03:01.5]}
4. e5 {[%clk 0:02:49.2]} 4... f6 {[%clk 0:03:01.5]} 5. Nf3 {[%clk 0:02:32.5]}
5... fxe5 {[%clk 0:02:51.7]} 6. dxe5 {[%clk 0:02:33.4]} 6... Nh6 {[%clk
0:02:51.6]} 7. Bd3 {[%clk 0:02:24]} 7... Nf7 {[%clk 0:02:51.2]} 8. Qe2 {[%clk
0:02:17.6]} 8... Be7 {[%clk 0:02:49.2]} 9. h4 {[%clk 0:02:14.2]} 9... Nb4 {[%clk
0:02:48]} 10. Bf4 {[%clk 0:02:09.2]} 10... c5 {[%clk 0:02:45.4]} 11. Bb5+ {[%clk
0:01:49.9]} 11... Bd7 {[%clk 0:02:45.4]} 12. a3 {[%clk 0:01:48.8]} 12... Bxb5
{[%clk 0:02:10]} 13. Qxb5+ {[%clk 0:01:46.6]} 13... Nc6 {[%clk 0:02:10.2]} 14.
Qxb7 {[%clk 0:01:45.3]} 14... Rc8 {[%clk 0:02:10.1]} 15. O-O-O {[%clk
0:01:37.8]} 15... O-O {[%clk 0:02:09.6]} 16. g3 {[%clk 0:01:30.4]} 16... Na5
{[%clk 0:02:09.5]} 17. Qa6 {[%clk 0:01:29.1]} 17... Nc4 {[%clk 0:02:01.4]} 18.
Qxe6 {[%clk 0:01:24.8]} 18... Qa5 {[%clk 0:01:33.2]} 19. Nxd5 {[%clk 0:01:08.3]}
19... Rb8 {[%clk 0:00:36.2]} 20. Nxe7+ {[%clk 0:01:04.6]} 20... Kh8 {[%clk
0:00:36.7]} 21. Qxc4 {[%clk 0:01:05.5]} 1-0

[Event "*** Titled Tuesday Blitz"]
[Site "Chess.com"]
[Date "2020.05.26"]
[Round "3"]
[White "FairChess_on_YouTube"]
[Black "VitaliyBernadskiy"]
[Result "1/2-1/2"]
[WhiteElo "3019"]
[BlackElo "2695"]
[TimeControl "180+1"]
[EndTime "10:25:53 PDT"]
[Termination "Game drawn by repetition"]

1. d4 {[%clk 0:03:00.9]} 1... Nf6 {[%clk 0:02:59.5]} 2. c4 {[%clk 0:03:01.1]}
2... c5 {[%clk 0:02:59.4]} 3. Nf3 {[%clk 0:02:59.9]} 3... cxd4 {[%clk
0:02:58.6]} 4. Nxd4 {[%clk 0:03:00.8]} 4... Nc6 {[%clk 0:02:55.7]} 5. Nc3 {[%clk
0:03:00.5]} 5... g6 {[%clk 0:02:54.1]} 6. e4 {[%clk 0:02:59.7]} 6... d6 {[%clk
0:02:51.8]} 7. Be2 {[%clk 0:02:53.7]} 7... Nxd4 {[%clk 0:02:47.7]} 8. Qxd4
{[%clk 0:02:53.3]} 8... Bg7 {[%clk 0:02:48.1]} 9. Bg5 {[%clk 0:02:52.2]} 9...
O-O {[%clk 0:02:47.7]} 10. Qd2 {[%clk 0:02:46.7]} 10... a5 {[%clk 0:02:45.7]}
11. Rd1 {[%clk 0:02:42.5]} 11... Be6 {[%clk 0:02:44.5]} 12. O-O {[%clk
0:02:35.6]} 12... a4 {[%clk 0:02:44.1]} 13. Rfe1 {[%clk 0:02:35.5]} 13... Qa5
{[%clk 0:02:43.4]} 14. Bf1 {[%clk 0:02:28.1]} 14... Rfc8 {[%clk 0:02:42.8]} 15.
Nd5 {[%clk 0:02:22.6]} 15... Qxd2 {[%clk 0:02:14.4]} 16. Bxd2 {[%clk 0:02:21.5]}
16... Bxd5 {[%clk 0:01:53.6]} 17. exd5 {[%clk 0:02:21.1]} 17... Re8 {[%clk
0:01:53.6]} 18. Bb4 {[%clk 0:01:44.8]} 18... Nd7 {[%clk 0:01:52.7]} 19. Ba3
{[%clk 0:01:41.2]} 19... Nc5 {[%clk 0:01:49.2]} 20. g3 {[%clk 0:01:37.3]} 20...
b6 {[%clk 0:01:44.1]} 21. h4 {[%clk 0:01:35.5]} 21... h5 {[%clk 0:01:32.5]} 22.
Bh3 {[%clk 0:01:35]} 22... f5 {[%clk 0:01:32.2]} 23. Kg2 {[%clk 0:01:29.9]}
23... Bf6 {[%clk 0:01:32.1]} 24. Kf3 {[%clk 0:01:27.9]} 24... Kf7 {[%clk
0:01:31.9]} 25. Re2 {[%clk 0:01:25.5]} 25... Rac8 {[%clk 0:01:31.6]} 26. Bf1
{[%clk 0:01:17.1]} 26... Ra8 {[%clk 0:01:28.6]} 27. Re3 {[%clk 0:01:15.3]} 27...
Rec8 {[%clk 0:01:25.7]} 28. Re2 {[%clk 0:01:12.5]} 28... Nd7 {[%clk 0:01:23.3]}
29. Rc2 {[%clk 0:01:08.3]} 29... Rc7 {[%clk 0:01:18.5]} 30. Kg2 {[%clk 0:01:06]}
30... Nc5 {[%clk 0:01:13.9]} 31. Rdc1 {[%clk 0:01:02.1]} 31... Rcc8 {[%clk
0:01:10]} 32. Be2 {[%clk 0:01:02.1]} 32... Rc7 {[%clk 0:01:09.8]} 33. Bf1 {[%clk
0:01:01.1]} 33... Rcc8 {[%clk 0:01:09.6]} 34. Be2 {[%clk 0:00:59.9]} 34... Rc7
{[%clk 0:01:09.8]} 35. Bf1 {[%clk 0:01:00]} 1/2-1/2

[Event "*** Titled Tuesday Blitz"]
[Site "Chess.com"]
[Date "2020.05.26"]
[Round "3"]
[White "1g41-0"]
[Black "124chess"]
[Result "0-1"]
[WhiteElo "2558"]
[BlackElo "2772"]
[TimeControl "180+1"]
[EndTime "10:25:53 PDT"]
[Termination "124chess won by resignation"]

1. d4 {[%clk 0:03:00.9]} 1... g6 {[%clk 0:02:57]} 2. e4 {[%clk 0:02:57.6]} 2...
Bg7 {[%clk 0:02:57.1]} 3. Nc3 {[%clk 0:02:56.7]} 3... d6 {[%clk 0:02:57.6]} 4.
h4 {[%clk 0:02:53.4]} 4... h6 {[%clk 0:02:40.2]} 5. Be3 {[%clk 0:02:51.1]} 5...
a6 {[%clk 0:02:36.4]} 6. Qd2 {[%clk 0:02:48.3]} 6... b5 {[%clk 0:02:36.1]} 7.
O-O-O {[%clk 0:02:47]} 7... Bb7 {[%clk 0:02:35.9]} 8. f3 {[%clk 0:02:46.1]} 8...
Nd7 {[%clk 0:02:36.1]} 9. Kb1 {[%clk 0:02:45.9]} 9... Nb6 {[%clk 0:02:28.8]} 10.
a3 {[%clk 0:02:40]} 10... c6 {[%clk 0:02:26.9]} 11. f4 {[%clk 0:02:31.2]} 11...
Nf6 {[%clk 0:02:23.8]} 12. Nf3 {[%clk 0:02:29.5]} 12... Qc7 {[%clk 0:02:22.1]}
13. h5 {[%clk 0:02:04.9]} 13... Nxh5 {[%clk 0:02:16.3]} 14. f5 {[%clk
0:02:03.1]} 14... O-O-O {[%clk 0:02:11]} 15. Bd3 {[%clk 0:01:56.7]} 15... Nf6
{[%clk 0:02:03.8]} 16. fxg6 {[%clk 0:01:51.1]} 16... fxg6 {[%clk 0:02:04.7]} 17.
Qf2 {[%clk 0:01:51.3]} 17... Ng4 {[%clk 0:02:03.4]} 18. Qe2 {[%clk 0:01:49.6]}
18... Nxe3 {[%clk 0:02:01.9]} 19. Qxe3 {[%clk 0:01:50.5]} 19... Kb8 {[%clk
0:02:01.5]} 20. e5 {[%clk 0:01:49.5]} 20... g5 {[%clk 0:01:57.3]} 21. Rdf1
{[%clk 0:01:41.2]} 21... Rhf8 {[%clk 0:01:56.4]} 22. Nd2 {[%clk 0:01:38.8]}
22... dxe5 {[%clk 0:01:54]} 23. dxe5 {[%clk 0:01:38.8]} 23... Bxe5 {[%clk
0:01:49.1]} 24. Nde4 {[%clk 0:01:33.6]} 24... Bd4 {[%clk 0:01:45.2]} 25. Qe2
{[%clk 0:01:31.4]} 25... c5 {[%clk 0:01:39.9]} 26. Nd2 {[%clk 0:01:01.1]} 26...
Rxf1+ {[%clk 0:01:33.2]} 27. Rxf1 {[%clk 0:01:00.3]} 27... Bxc3 {[%clk
0:01:27.6]} 28. bxc3 {[%clk 0:01:01.2]} 28... Na4 {[%clk 0:01:24.9]} 29. Qe6
{[%clk 0:00:57.8]} 29... c4 {[%clk 0:01:18.8]} 30. Rf7 {[%clk 0:00:51.7]} 30...
cxd3 {[%clk 0:01:13.6]} 31. Rxe7 {[%clk 0:00:52.1]} 31... dxc2+ {[%clk
0:01:13.4]} 32. Kxc2 {[%clk 0:00:50.3]} 32... Qxc3+ {[%clk 0:01:12.2]} 0-1

[Event "*** Titled Tuesday Blitz"]
[Site "Chess.com"]
[Date "2020.05.26"]
[Round "3"]
[White "Bossche-CM"]
[Black "QueenOfTactics90"]
[Result "0-1"]
[WhiteElo "2445"]
[BlackElo "1951"]
[TimeControl "180+1"]
[EndTime "10:25:59 PDT"]
[Termination "QueenOfTactics90 won by resignation"]

1. e4 {[%clk 0:03:00.9]} 1... c5 {[%clk 0:02:59.7]} 2. b3 {[%clk 0:03:00.6]}
2... Nc6 {[%clk 0:02:56.4]} 3. Bb2 {[%clk 0:02:59.4]} 3... e5 {[%clk 0:02:55]}
4. Bc4 {[%clk 0:02:58.3]} 4... Nf6 {[%clk 0:02:50.4]} 5. Nc3 {[%clk 0:02:56.7]}
5... g6 {[%clk 0:02:49.2]} 6. Nf3 {[%clk 0:02:48.6]} 6... Bg7 {[%clk 0:02:48.6]}
7. d3 {[%clk 0:02:48]} 7... d6 {[%clk 0:02:47.2]} 8. O-O {[%clk 0:02:47.3]} 8...
O-O {[%clk 0:02:46.7]} 9. h3 {[%clk 0:02:45.8]} 9... Be6 {[%clk 0:02:43.2]} 10.
a4 {[%clk 0:02:44.9]} 10... a6 {[%clk 0:02:39.7]} 11. Bc1 {[%clk 0:02:34.2]}
11... h6 {[%clk 0:02:27.6]} 12. Be3 {[%clk 0:02:33.5]} 12... Kh7 {[%clk
0:02:26.3]} 13. Qd2 {[%clk 0:02:33.6]} 13... d5 {[%clk 0:02:18]} 14. exd5 {[%clk
0:02:27.6]} 14... Bxd5 {[%clk 0:02:16]} 15. Nxd5 {[%clk 0:02:22.6]} 15... Nxd5
{[%clk 0:02:16]} 16. Bxc5 {[%clk 0:02:23.2]} 16... Re8 {[%clk 0:02:15.1]} 17.
Rae1 {[%clk 0:02:20.3]} 17... f5 {[%clk 0:02:01.3]} 18. Ba3 {[%clk 0:02:10.4]}
18... Rb8 {[%clk 0:01:57.2]} 19. b4 {[%clk 0:01:52.6]} 19... b5 {[%clk
0:01:53.9]} 20. axb5 {[%clk 0:01:49.7]} 20... axb5 {[%clk 0:01:54.1]} 21. Bb3
{[%clk 0:01:41.3]} 21... Nf4 {[%clk 0:01:47.6]} 22. Bb2 {[%clk 0:01:27.7]} 22...
e4 {[%clk 0:01:39.6]} 23. Bxg7 {[%clk 0:01:26.7]} 23... exf3 {[%clk 0:01:38.2]}
24. Qxf4 {[%clk 0:01:23]} 24... Kxg7 {[%clk 0:01:36.6]} 25. Qxf3 {[%clk
0:01:22.9]} 25... Nd4 {[%clk 0:01:33.9]} 26. Rxe8 {[%clk 0:01:19.6]} 26... Nxf3+
{[%clk 0:01:28.7]} 27. gxf3 {[%clk 0:01:20.5]} 27... Qxe8 {[%clk 0:01:28.4]} 28.
Ra1 {[%clk 0:01:20.2]} 28... Rb7 {[%clk 0:01:26.7]} 29. Ra6 {[%clk 0:01:17.5]}
29... Qe5 {[%clk 0:01:24.6]} 30. Re6 {[%clk 0:01:13.6]} 30... Qf4 {[%clk
0:01:19.7]} 31. Kg2 {[%clk 0:01:13.4]} 31... Qxb4 {[%clk 0:01:19.4]} 32. Re8
{[%clk 0:01:09.6]} 32... Qc5 {[%clk 0:01:16.7]} 33. Rg8+ {[%clk 0:01:03.8]}
33... Kh7 {[%clk 0:01:16.5]} 34. Rd8 {[%clk 0:01:03.9]} 34... f4 {[%clk
0:01:14.6]} 35. d4 {[%clk 0:01:02.4]} 35... Qg5+ {[%clk 0:01:13.8]} 36. Kf1
{[%clk 0:01:02.9]} 36... Qxd8 {[%clk 0:01:13.9]} 0-1